[Event "FIDE WCCC G10 2018"]
[Site "Santiago de Compostela"]
[Date "2018.11.05"]
[Round "2"]
[White "Gupta, Sara"]
[Black "Guid, Taja"]
[Result "1-0"]
[ECO "B20"]
[WhiteElo "1561"]
[BlackElo "1280"]
[Annotator "NA RC"]
[PlyCount "107"]
[EventDate "2018.11.04"]
[EventType "swiss"]
[EventCountry "ESP"]
[SourceTitle "playchess.com"]
[Source "ChessBase"]
[SourceQuality "1"]
[TimeControl "40/5400+30:1800+30"]

1. e4 {[%emt 0:00:00]} c5 {[%emt 0:00:00]} 2. b3 {[%emt 0:00:57]} Nc6 {[%emt 0:02:04]} 3. Bb2 {[%emt 0:01:18]} Nf6 {[%emt 0:06:33]} 4. e5 {[%emt 0:04:32]} Nd5 {[%emt 0:00:59]} 5. Nf3 {[%emt 0:02:29]} e6 {[%emt 0:03:20]} 6. Bb5 {[%emt 0:02:19]} Be7 {[%emt 0:05:39]} 7. Bxc6 {[%emt 0:04:21]} bxc6 {[%emt 0:03:44]} 8. O-O {[%emt 0:02:24]} O-O {[%emt 0:00:18]} 9. d3 {[%emt 0:03:34]} f6 {[%emt 0:08:32]} 10. Nbd2 {[%emt 0:11:09]} fxe5 {[%emt 0:01:40]} 11. Nxe5 {[%emt 0:06:01]} Bf6 {[%emt 0:03:42]} 12. Ne4 {[%emt 0:06:04]} Qc7 {[%emt 0:07:31]} 13. Nxf6+ {[%emt 0:04:22]} Nxf6 {[%emt 0:00:37]} 14. Qf3 {[%emt 0:08:11]} Bb7 {[%emt 0:06:34]} 15. Qg3 {[%emt 0:05:36]} d6 {[%emt 0:07:58]} 16. Ng4 {[%emt 0:02:59]} Nxg4 {[%emt 0:02:25]} 17. Qxg4 {[%emt 0:00:30]} e5 {[%emt 0:00:22]} 18. f4 {[%emt 0:03:24]} Bc8 {[%emt 0:03:38]} 19. Qg3 {[%emt 0:01:18]} exf4 {[%emt 0:01:04]} 20. Rxf4 {[%emt 0:00:36]} Rxf4 {[%emt 0:00:30]} 21. Qxf4 {[%emt 0:00:25]} Be6 {[%emt 0:00:52]} 22. Re1 {[%emt 0:02:08]} Rf8 {[%emt 0:00:57]} 23. Qg5 {[%emt 0:02:27]} Rf5 {[%emt 0:05:41]} 24. Qxg7+ {[%emt 0:01:31]} Qxg7 {[%emt 0:00:07]} 25. Bxg7 {[%emt 0:00:07]} Bxb3 {[%emt 0:00:20]} 26. axb3 {[%emt 0:00:22]} Kxg7 {[%emt 0:00:10]} 27. Re7+ {[%emt 0:00:17]} Rf7 {[%emt 0:00:07]} 28. Re6 {[%emt 0:00:43]} Rf6 {[%emt 0:00:12]} 29. Re8 {[%emt 0:01:56]} d5 {[%emt 0:06:47]} 30. Ra8 {[%emt 0:01:00]} d4 {[%emt 0:02:42]} 31. Rxa7+ {[%emt 0:02:12]} Kg6 {[%emt 0:00:15]} 32. Ra5 {[%emt 0:00:45]} Rf5 {[%emt 0:00:09]} 33. g4 {[%emt 0:01:01]} Rd5 {[%emt 0:01:02]} 34. Kf2 {[%emt 0:00:36]} Kg5 {[%emt 0:01:03]} 35. Kg3 {[%emt 0:00:29]} h6 {[%emt 0:00:54]} 36. h4+ {[%emt 0:00:18]} Kg6 {[%emt 0:00:40]} 37. Kf4 {[%emt 0:00:07]} Kf6 {[%emt 0:00:07]} 38. Ke4 {[%emt 0:00:44]} Ke6 {[%emt 0:00:18]} 39. b4 {[%emt 0:01:37]} cxb4 {[%emt 0:02:12]} 40. Rxd5 {[%emt 0:00:00]} cxd5+ {[%emt 0:00:00]} 41. Kxd4 {[%emt 0:00:13]} Kd6 {[%emt 0:00:29]} 42. g5 {[%emt 0:00:29]} h5 {[%emt 0:00:08]} 43. g6 {[%emt 0:00:30]} Ke6 {[%emt 0:00:07]} 44. g7 {[%emt 0:00:17]} Kf7 {[%emt 0:00:09]} 45. Kxd5 {[%emt 0:00:03]} Kxg7 {[%emt 0:00:11]} 46. Kc4 {[%emt 0:00:09]} Kf6 {[%emt 0:00:08]} 47. Kxb4 {[%emt 0:00:04]} Kf5 {[%emt 0:00:17]} 48. c4 {[%emt 0:00:06]} Kg4 {[%emt 0:00:15]} 49. c5 {[%emt 0:00:04]} Kxh4 {[%emt 0:00:05]} 50. c6 {[%emt 0:00:04]} Kg3 {[%emt 0:00:09]} 51. c7 {[%emt 0:00:02]} h4 {[%emt 0:00:06]} 52. c8=Q {[%emt 0:00:10]} h3 {[%emt 0:00:06]} 53. Qg8+ {[%emt 0:00:11]} Kh2 {[%emt 0:00:11]} 54. Qg4 {[%emt 0:00:11]} 1-0

[Event "FIDE WCCC G10 2018"]
[Site "Santiago de Compostela"]
[Date "2018.11.05"]
[Round "2"]
[White "Da Cunha, Gabriela Goes"]
[Black "Ho, Ngoc Vy"]
[Result "0-1"]
[ECO "C68"]
[WhiteElo "1464"]
[BlackElo "1275"]
[Annotator "NA RC"]
[PlyCount "126"]
[EventDate "2018.11.04"]
[EventType "swiss"]
[EventCountry "ESP"]
[SourceTitle "playchess.com"]
[Source "ChessBase"]
[SourceQuality "1"]
[TimeControl "40/5400+30:1800+30"]

1. e4 {[%emt 0:00:00]} e5 {[%emt 0:00:00]} 2. Nf3 {[%emt 0:00:00]} Nc6 {[%emt 0:00:00]} 3. Bb5 {[%emt 0:00:00]} a6 {[%emt 0:00:01]} 4. Bxc6 {[%emt 0:00:04]} dxc6 {[%emt 0:00:12]} 5. d4 {[%emt 0:00:08]} exd4 {[%emt 0:00:15]} 6. Qxd4 {[%emt 0:00:13]} Bg4 {[%emt 0:00:32]} 7. Be3 {[%emt 0:01:14]} Nf6 {[%emt 0:01:33]} 8. Nbd2 {[%emt 0:06:05]} Be7 {[%emt 0:02:45]} 9. Qxd8+ {[%emt 0:10:27]} Rxd8 {[%emt 0:00:29]} 10. O-O-O {[%emt 0:01:28]} O-O {[%emt 0:00:28]} 11. Bf4 {[%emt 0:09:04]} Rc8 {[%emt 0:05:10]} 12. Rhe1 {[%emt 0:07:31]} Rfe8 {[%emt 0:00:45]} 13. h3 {[%emt 0:03:23]} Bh5 {[%emt 0:01:22]} 14. g4 {[%emt 0:03:38]} Bg6 {[%emt 0:00:11]} 15. g5 {[%emt 0:06:13]} Nh5 {[%emt 0:04:19]} 16. Bh2 {[%emt 0:00:14]} Bc5 {[%emt 0:00:51]} 17. Re2 {[%emt 0:02:01]} Bb6 {[%emt 0:01:36]} 18. Nh4 {[%emt 0:03:17]} Rcd8 {[%emt 0:01:14]} 19. f4 {[%emt 0:03:26]} f5 {[%emt 0:01:58]} 20. e5 {[%emt 0:01:54]} Rd4 {[%emt 0:00:54]} 21. Ng2 {[%emt 0:03:16]} Ra4 {[%emt 0:11:39]} 22. a3 {[%emt 0:06:38]} Bf7 {[%emt 0:01:11]} 23. Nf3 {[%emt 0:04:41]} Bd5 {[%emt 0:01:40]} 24. Nfh4 {[%emt 0:00:51]} g6 {[%emt 0:01:41]} 25. Red2 {[%emt 0:10:44]} Kf7 {[%emt 0:02:59]} 26. Rd3 {[%emt 0:02:53]} Kg8 {[%emt 0:00:45]} 27. b4 {[%emt 0:02:53]} a5 {[%emt 0:00:47]} 28. bxa5 {[%emt 0:00:51]} Bxa5 {[%emt 0:00:58]} 29. Ne3 {[%emt 0:02:07]} Nxf4 {[%emt 0:01:22]} 30. Bxf4 {[%emt 0:00:06]} Rxf4 {[%emt 0:00:10]} 31. Nxd5 {[%emt 0:00:06]} cxd5 {[%emt 0:00:27]} 32. Rxd5 {[%emt 0:00:08]} Bc3 {[%emt 0:01:12]} 33. Rc5 {[%emt 0:05:50]} Bxe5 {[%emt 0:01:10]} 34. Ng2 {[%emt 0:00:20]} Rf2 {[%emt 0:00:50]} 35. Ne1 {[%emt 0:01:06]} Bd6 {[%emt 0:00:19]} 36. Rcd5 {[%emt 0:00:19]} Bxa3+ {[%emt 0:00:28]} 37. Kb1 {[%emt 0:00:13]} Bd6 {[%emt 0:00:16]} 38. Nd3 {[%emt 0:00:15]} Rf3 {[%emt 0:00:23]} 39. Nc5 {[%emt 0:00:49]} b6 {[%emt 0:02:32]} 40. Nb7 {[%emt 0:00:00]} Be7 {[%emt 0:00:00]} 41. Re5 {[%emt 0:01:51]} Rxh3 {[%emt 0:05:15]} 42. Rde1 {[%emt 0:01:47]} Kf8 {[%emt 0:00:14]} 43. Nd8 {[%emt 0:01:07]} Rxd8 {[%emt 0:09:30]} 44. Rxe7 {[%emt 0:00:11]} Kg8 {[%emt 0:00:10]} 45. Rxc7 {[%emt 0:00:21]} f4 {[%emt 0:00:17]} 46. Kb2 {[%emt 0:00:36]} f3 {[%emt 0:00:11]} 47. Kc1 {[%emt 0:00:47]} Rh2 {[%emt 0:04:42]} 48. Ree7 {[%emt 0:01:32]} f2 {[%emt 0:00:41]} 49. Rg7+ {[%emt 0:00:23]} Kh8 {[%emt 0:00:15]} 50. Rgf7 {[%emt 0:00:19]} Rh1+ {[%emt 0:00:21]} 51. Kb2 {[%emt 0:00:07]} f1=Q {[%emt 0:00:16]} 52. Rxf1 {[%emt 0:00:09]} Rxf1 {[%emt 0:00:18]} 53. Rb7 {[%emt 0:00:10]} Rg1 {[%emt 0:00:09]} 54. Rxb6 {[%emt 0:00:07]} Rxg5 {[%emt 0:00:13]} 55. c4 {[%emt 0:00:07]} h5 {[%emt 0:00:09]} 56. Rc6 {[%emt 0:00:13]} h4 {[%emt 0:00:54]} 57. c5 {[%emt 0:00:10]} h3 {[%emt 0:00:06]} 58. Re6 {[%emt 0:00:15]} h2 {[%emt 0:00:16]} 59. Re1 {[%emt 0:00:04]} Rg1 {[%emt 0:00:26]} 60. Rxg1 {[%emt 0:00:08]} hxg1=Q {[%emt 0:01:17]} 61. c6 {[%emt 0:00:17]} Qg3 {[%emt 0:00:18]} 62. c7 {[%emt 0:00:06]} Rd2+ {[%emt 0:00:09]} 63. Kc1 {[%emt 0:00:22]} Qe1# {[%emt 0:00:10]} 0-1

[Event "FIDE WCCC G10 2018"]
[Site "Santiago de Compostela"]
[Date "2018.11.05"]
[Round "2"]
[White "Vu, My Linh"]
[Black "Zhapova, Yana"]
[Result "1-0"]
[ECO "D43"]
[WhiteElo "1349"]
[BlackElo "1821"]
[Annotator "NA RC"]
[PlyCount "87"]
[EventDate "2018.11.04"]
[EventType "swiss"]
[EventCountry "ESP"]
[SourceTitle "playchess.com"]
[Source "ChessBase"]
[SourceQuality "1"]
[TimeControl "40/5400+30:1800+30"]

{[%evp 8,82,25,32767,32767,-3,10,32767,32767,0,-5,0,32767,32767,32767,-8,-12,-8,-9,-17,0,-12,49,40,43,31,49,53,41,30,30,36,41,35,54,31,46,43,60,64,64,57,55,52,64,54,77,44,56,0,51,32767,32767,32767,32767,32767,178,175,153,-27,-41,-6,-22,-26,-11,-17,-17,-29,-3,-27,-29,-29,1009,983,1050,1006,29991]} 1. d4 d5 2. c4 e6 3. Nc3 c6 4. Nf3 Nf6 5. cxd5 exd5 6. Bg5 Bf5 7. e3 Be7 8. Bd3 Bxd3 9. Qxd3 Nbd7 10. O-O O-O 11. Rac1 {LiveBook: 7 Games} Ne4 {D35: Damengambit (Abtauschvariante)} (11... Re8 12. h3 Bd6 13. Bf4 Bxf4 14. exf4 Nf8 15. Rfe1 Qd6 16. g3 N6d7 17. Kh2 Nb6 18. Rxe8 Rxe8 19. Re1 Rxe1 20. Nxe1 {0-1 (102) Ermeni,A (2307)-Buhmann,R (2580) Switzerland 2014}) 12. Bxe7 Qxe7 13. Nd2 Nd6 14. Na4 $146 ({Vorgänger:} 14. f3 f5 15. b4 Rae8 16. Rfe1 b5 17. e4 fxe4 18. fxe4 Nc4 19. Nxc4 dxc4 {0-1 (45) Ibrahim,A (2166)-Linskiy,O (2463) Montreal 2000}) 14... b5 (14... f5 $11) 15. Nc5 Nb6 16. b3 a5 17. Nf3 f6 18. Rfe1 Rfe8 19. Nh4 g6 20. g3 Ne4 21. f3 Nxc5 22. Rxc5 Qd6 23. Rec1 Rac8 24. Ng2 Nd7 25. R5c3 Rc7 26. Nf4 g5 27. Ng2 Rec8 28. e4 ({Better is} 28. Qf5 $14) 28... b4 29. R3c2 dxe4 30. Qc4+ Kg7 31. Ne3 Kg6 32. fxe4 Re8 33. Qd3 $2 (33. e5 $18 Qe6 34. Qe2) 33... Ne5 $1 34. Nf5 $1 Nxd3 35. Nxd6 Re6 36. Rd1 Rxd6 37. Rxd3 Rcd7 38. Rcd2 Re6 39. Re3 f5 $2 (39... Rde7 $11) 40. exf5+ Kxf5 $18 41. Rf2+ Kg4 42. Rxe6 Rxd4 43. Rh6 Rd7 44. Kg2 1-0

[Event "FIDE WCCC G10 2018"]
[Site "Santiago de Compostela"]
[Date "2018.11.05"]
[Round "2"]
[White "Novikova, Daria"]
[Black "Kleymenova, Valeria"]
[Result "0-1"]
[ECO "D36"]
[WhiteElo "1339"]
[BlackElo "1773"]
[Annotator "NA RC"]
[PlyCount "97"]
[EventDate "2018.11.04"]
[EventType "swiss"]
[EventCountry "ESP"]
[SourceTitle "playchess.com"]
[Source "ChessBase"]
[SourceQuality "1"]
[TimeControl "40/5400+30:1800+30"]

1. d4 {[%emt 0:00:00]} d5 {[%emt 0:00:00]} 2. c4 {[%emt 0:00:01]} c6 {[%emt 0:00:00]} 3. Nc3 {[%emt 0:00:11]} e6 {[%emt 0:00:11]} 4. cxd5 {[%emt 0:00:32]} exd5 {[%emt 0:00:15]} 5. Qc2 {[%emt 0:00:44]} Nf6 {[%emt 0:00:36]} 6. Bg5 {[%emt 0:00:48]} Be7 {[%emt 0:00:40]} 7. e3 {[%emt 0:00:53]} O-O {[%emt 0:00:29]} 8. Bd3 {[%emt 0:00:23]} h6 {[%emt 0:00:21]} 9. Bf4 {[%emt 0:00:29]} Re8 {[%emt 0:00:21]} 10. Nf3 {[%emt 0:00:40]} Bd6 {[%emt 0:02:41]} 11. Bg3 {[%emt 0:04:46]} Qe7 {[%emt 0:03:42]} 12. Bxd6 {[%emt 0:19:24]} Qxd6 {[%emt 0:00:06]} 13. Ne5 {[%emt 0:00:53]} Nbd7 {[%emt 0:01:26]} 14. f4 {[%emt 0:01:50]} Qe7 {[%emt 0:05:36]} 15. O-O {[%emt 0:02:08]} Nf8 {[%emt 0:02:28]} 16. a3 {[%emt 0:02:59]} N6d7 {[%emt 0:00:32]} 17. Rf3 {[%emt 0:12:51]} f6 {[%emt 0:01:14]} 18. Ng6 {[%emt 0:00:58]} Qd6 {[%emt 0:01:53]} 19. Rg3 {[%emt 0:01:37]} Nxg6 {[%emt 0:00:57]} 20. Bxg6 {[%emt 0:01:04]} Re7 {[%emt 0:00:31]} 21. Bh7+ {[%emt 0:01:05]} Kh8 {[%emt 0:00:21]} 22. Bf5 {[%emt 0:08:38]} Nb6 {[%emt 0:01:02]} 23. Bxc8 {[%emt 0:00:34]} Rxc8 {[%emt 0:00:15]} 24. Rf1 {[%emt 0:01:10]} Rce8 {[%emt 0:02:12]} 25. Rff3 {[%emt 0:00:46]} Nc4 {[%emt 0:00:08]} 26. Kf2 {[%emt 0:08:26]} Rxe3 {[%emt 0:09:33]} 27. Rxe3 {[%emt 0:01:03]} Qxf4+ {[%emt 0:00:17]} 28. Rgf3 {[%emt 0:14:16]} Nxe3 {[%emt 0:00:31]} 29. Rxf4 {[%emt 0:02:25]} Nxc2 {[%emt 0:00:03]} 30. Ne2 {[%emt 0:01:05]} Kh7 {[%emt 0:00:39]} 31. Rg4 {[%emt 0:02:48]} Ne3 {[%emt 0:00:26]} 32. Rg3 {[%emt 0:01:37]} Nf5 {[%emt 0:00:15]} 33. Rc3 {[%emt 0:01:11]} Nd6 {[%emt 0:00:16]} 34. Ng3 {[%emt 0:01:06]} f5 {[%emt 0:00:47]} 35. Rb3 {[%emt 0:02:31]} g5 {[%emt 0:00:37]} 36. Kf3 {[%emt 0:04:05]} Kg6 {[%emt 0:00:14]} 37. Ne2 {[%emt 0:00:29]} h5 {[%emt 0:00:18]} 38. Nc3 {[%emt 0:00:16]} f4 {[%emt 0:00:51]} 39. Na4 {[%emt 0:00:38]} b5 {[%emt 0:00:40]} 40. Nc5 {[%emt 0:00:00]} Nc4 {[%emt 0:00:00]} 41. Rc3 {[%emt 0:01:35]} Nxb2 {[%emt 0:01:36]} 42. Nd7 {[%emt 0:00:33]} Nc4 {[%emt 0:00:18]} 43. Ne5+ {[%emt 0:00:29]} Kf5 {[%emt 0:00:23]} 44. Nxc6 {[%emt 0:00:28]} Nd2+ {[%emt 0:00:14]} 45. Kf2 {[%emt 0:00:40]} Ne4+ {[%emt 0:00:05]} 46. Kf1 {[%emt 0:00:08]} Nxc3 {[%emt 0:00:08]} 47. Nxa7 {[%emt 0:00:13]} Ra8 {[%emt 0:00:10]} 48. Nc6 {[%emt 0:00:15]} Rxa3 {[%emt 0:00:09]} 49. Ne7+ {[%emt 0:00:08] Ke5} 0-1

[Event "FIDE WCCC G10 2018"]
[Site "Santiago de Compostela"]
[Date "2018.11.05"]
[Round "2"]
[White "Kurmanalina, Deniza"]
[Black "Zakirova, Aisha"]
[Result "1-0"]
[ECO "B22"]
[WhiteElo "1320"]
[BlackElo "1678"]
[Annotator "NA"]
[PlyCount "139"]
[EventDate "2018.11.04"]
[EventType "swiss"]
[EventCountry "ESP"]
[SourceTitle "playchess.com"]
[Source "ChessBase"]
[SourceQuality "1"]
[TimeControl "40/5400+30:1800+30"]

1. e4 {[%emt 0:00:00]} c5 {[%emt 0:00:00]} 2. c3 {[%emt 0:00:00]} Qa5 {[%emt 0:00:00]} 3. Nf3 {[%emt 0:00:23]} Nc6 {[%emt 0:00:01]} 4. Be2 {[%emt 0:01:24]} Nf6 {[%emt 0:00:34]} 5. d3 {[%emt 0:00:19]} d6 {[%emt 0:00:54]} 6. Nbd2 {[%emt 0:01:05]} g6 {[%emt 0:02:20]} 7. Nc4 {[%emt 0:00:36]} Qc7 {[%emt 0:02:12]} 8. O-O {[%emt 0:02:08]} Bg7 {[%emt 0:03:11]} 9. Bf4 {[%emt 0:01:53]} b5 {[%emt 0:26:34]} 10. Ne3 {[%emt 0:02:38]} a6 {[%emt 0:05:24]} 11. Bg5 {[%emt 0:02:05]} e6 {[%emt 0:05:07]} 12. Rc1 {[%emt 0:05:40]} O-O {[%emt 0:07:09]} 13. Qd2 {[%emt 0:01:41]} Bb7 {[%emt 0:01:50]} 14. h3 {[%emt 0:06:23]} Rac8 {[%emt 0:05:04]} 15. Nh2 {[%emt 0:00:41]} Nd7 {[%emt 0:13:33]} 16. f4 {[%emt 0:01:59]} f6 {[%emt 0:00:33]} 17. Bh4 {[%emt 0:00:24]} Nb6 {[%emt 0:00:14]} 18. Bg3 {[%emt 0:02:45]} f5 {[%emt 0:00:50]} 19. exf5 {[%emt 0:01:21]} exf5 {[%emt 0:00:09]} 20. Bf3 {[%emt 0:00:55]} Qf7 {[%emt 0:02:38]} 21. b3 {[%emt 0:04:53]} Rfe8 {[%emt 0:01:23]} 22. Rfe1 {[%emt 0:05:25]} Kh8 {[%emt 0:01:12]} 23. Kh1 {[%emt 0:01:52]} d5 {[%emt 0:03:26]} 24. Nc2 {[%emt 0:03:21]} a5 {[%emt 0:03:04]} 25. d4 {[%emt 0:01:52]} cxd4 {[%emt 0:01:14]} 26. Nxd4 {[%emt 0:00:39]} Nxd4 {[%emt 0:01:18]} 27. cxd4 {[%emt 0:00:11]} Rxe1+ {[%emt 0:01:11]} 28. Rxe1 {[%emt 0:00:12]} Qc7 {[%emt 0:00:16]} 29. Qxa5 {[%emt 0:03:20]} Qc6 {[%emt 0:03:10]} 30. Qd2 {[%emt 0:01:58]} Nd7 {[%emt 0:00:56]} 31. Nf1 {[%emt 0:03:12]} Nf6 {[%emt 0:00:33]} 32. Qb4 {[%emt 0:01:52]} Bf8 {[%emt 0:01:05]} 33. Qd2 {[%emt 0:02:09]} Ne4 {[%emt 0:01:15]} 34. Bxe4 {[%emt 0:02:07]} dxe4 {[%emt 0:01:29]} 35. Ne3 {[%emt 0:00:43]} Bg7 {[%emt 0:00:48]} 36. d5 {[%emt 0:04:14]} Qd6 {[%emt 0:00:49]} 37. Rc1 {[%emt 0:04:54]} Rd8 {[%emt 0:00:27]} 38. Qe2 {[%emt 0:03:17]} Qb6 {[%emt 0:01:51]} 39. Bh4 {[%emt 0:04:55]} Rd7 {[%emt 0:01:15]} 40. Rd1 {[%emt 0:00:00]} Qc5 {[%emt 0:00:00]} 41. Bf2 {[%emt 0:18:17]} Qb4 {[%emt 0:03:29]} 42. Nc2 {[%emt 0:02:34]} Qa5 {[%emt 0:01:40]} 43. Nd4 {[%emt 0:02:43]} Rxd5 {[%emt 0:04:23]} 44. Ne6 {[%emt 0:03:49]} Bf6 {[%emt 0:01:50]} 45. Rxd5 {[%emt 0:02:46]} Bxd5 {[%emt 0:00:20]} 46. Bd4 {[%emt 0:00:56]} Bxd4 {[%emt 0:02:35]} 47. Nxd4 {[%emt 0:00:12]} b4 {[%emt 0:00:39]} 48. Qb5 {[%emt 0:04:30]} Qa8 {[%emt 0:11:42]} 49. Qxb4 {[%emt 0:02:22]} e3 {[%emt 0:00:13]} 50. Qc3 {[%emt 0:02:32]} Kg8 {[%emt 0:02:18]} 51. Qxe3 {[%emt 0:05:01]} Bxg2+ {[%emt 0:00:20]} 52. Kg1 {[%emt 0:00:56]} Be4 {[%emt 0:00:58]} 53. a4 {[%emt 0:01:02]} Bh1 {[%emt 0:02:10]} 54. Qe2 {[%emt 0:01:41]} Be4 {[%emt 0:00:42]} 55. Nb5 {[%emt 0:03:10]} Qf8 {[%emt 0:04:03]} 56. Qc4+ {[%emt 0:00:57]} Kh8 {[%emt 0:00:08]} 57. a5 {[%emt 0:01:03]} Qh6 {[%emt 0:00:54]} 58. Qc8+ {[%emt 0:02:08]} Kg7 {[%emt 0:00:04]} 59. Qd7+ {[%emt 0:00:10]} Kf6 {[%emt 0:00:10]} 60. Qd6+ {[%emt 0:00:55]} Kg7 {[%emt 0:00:09]} 61. Qe7+ {[%emt 0:00:35]} Kg8 {[%emt 0:00:16]} 62. Nd6 {[%emt 0:02:20]} g5 {[%emt 0:01:00]} 63. Qxg5+ {[%emt 0:00:49]} Qxg5+ {[%emt 0:00:07]} 64. fxg5 {[%emt 0:00:03]} Bd3 {[%emt 0:00:22]} 65. b4 {[%emt 0:00:15]} Kf8 {[%emt 0:00:05]} 66. Nb7 {[%emt 0:00:32]} Ke7 {[%emt 0:00:07]} 67. Nc5 {[%emt 0:00:08]} Bb5 {[%emt 0:00:10]} 68. a6 {[%emt 0:00:20]} Kd6 {[%emt 0:00:21]} 69. Kf2 {[%emt 0:00:36]} Kc6 {[%emt 0:00:08]} 70. a7 {[%emt 0:00:15]} 1-0

[Event "FIDE WCCC G10 2018"]
[Site "Santiago de Compostela"]
[Date "2018.11.05"]
[Round "2"]
[White "Rajanya Datta"]
[Black "Braeutigam, Katerina"]
[Result "1-0"]
[ECO "B01"]
[WhiteElo "1312"]
[BlackElo "1647"]
[Annotator "NA RC"]
[PlyCount "27"]
[EventDate "2018.11.04"]
[EventType "swiss"]
[EventCountry "ESP"]
[SourceTitle "playchess.com"]
[Source "ChessBase"]
[SourceQuality "1"]
[TimeControl "40/5400+30:1800+30"]

1. e4 {[%emt 0:00:00]} d5 {[%emt 0:00:00]} 2. exd5 {[%emt 0:00:00]} Qxd5 {[%emt 0:00:00]} 3. Nc3 {[%emt 0:00:00]} Qa5 {[%emt 0:00:00]} 4. d4 {[%emt 0:00:00]} Nf6 {[%emt 0:00:06]} 5. Bc4 {[%emt 0:00:12]} c6 {[%emt 0:00:11]} 6. Bd2 {[%emt 0:00:19]} Bf5 {[%emt 0:00:13]} 7. Nd5 {[%emt 0:01:56]} Qd8 {[%emt 0:00:11]} 8. Nxf6+ {[%emt 0:00:08]} exf6 {[%emt 0:01:30]} 9. Nf3 {[%emt 0:00:25]} Be7 {[%emt 0:00:36]} 10. O-O {[%emt 0:01:02]} O-O {[%emt 0:00:10]} 11. Re1 {[%emt 0:01:09]} Bd6 {[%emt 0:05:55]} 12. Nh4 {[%emt 0:04:34]} Bc8 {[%emt 0:07:12]} 13. Qh5 {[%emt 0:05:57]} g6 {[%emt 0:24:44]} 14. Nxg6 {[%emt 0:00:28]} 1-0

[Event "FIDE WCCC G10 2018"]
[Site "Santiago de Compostela"]
[Date "2018.11.05"]
[Round "2"]
[White "Gvatua, Mariam"]
[Black "Vlasova, Olesia"]
[Result "0-1"]
[ECO "B20"]
[WhiteElo "1298"]
[BlackElo "1639"]
[Annotator "NA RC"]
[PlyCount "64"]
[EventDate "2018.11.04"]
[EventType "swiss"]
[EventCountry "ESP"]
[SourceTitle "playchess.com"]
[Source "ChessBase"]
[SourceQuality "1"]
[TimeControl "40/5400+30:1800+30"]

1. e4 {[%emt 0:00:00]} c5 {[%emt 0:00:00]} 2. d3 {[%emt 0:00:00]} Nc6 {[%emt 0:00:00]} 3. g3 {[%emt 0:00:00]} g6 {[%emt 0:00:00]} 4. Bg2 {[%emt 0:00:00]} Bg7 {[%emt 0:00:16]} 5. Nd2 {[%emt 0:00:00]} e6 {[%emt 0:00:20]} 6. Ne2 {[%emt 0:00:00]} Nge7 {[%emt 0:00:17]} 7. O-O {[%emt 0:00:09]} O-O {[%emt 0:00:22]} 8. f4 {[%emt 0:00:09]} d6 {[%emt 0:01:27]} 9. Nf3 {[%emt 0:03:18]} Rb8 {[%emt 0:02:24]} 10. h3 {[%emt 0:00:10]} b5 {[%emt 0:02:42]} 11. g4 {[%emt 0:00:12]} f5 {[%emt 0:02:49]} 12. Ng3 {[%emt 0:00:18]} Qc7 {[%emt 0:02:11]} 13. Kh1 {[%emt 0:03:46]} Bd7 {[%emt 0:02:41]} 14. Rg1 {[%emt 0:00:50]} a5 {[%emt 0:11:55]} 15. c3 {[%emt 0:01:19]} b4 {[%emt 0:11:52]} 16. c4 {[%emt 0:00:12]} Nd4 {[%emt 0:03:22]} 17. Rb1 {[%emt 0:00:32]} Nec6 {[%emt 0:02:15]} 18. b3 {[%emt 0:02:04]} Qd8 {[%emt 0:02:08]} 19. Bb2 {[%emt 0:03:17]} fxg4 {[%emt 0:01:07]} 20. hxg4 {[%emt 0:00:15]} Rxf4 {[%emt 0:01:29]} 21. Bc1 {[%emt 0:02:03]} Rf7 {[%emt 0:09:22]} 22. Bg5 {[%emt 0:07:18]} Bf6 {[%emt 0:01:47]} 23. Bxf6 {[%emt 0:00:45]} Qxf6 {[%emt 0:00:39]} 24. Rf1 {[%emt 0:02:02]} Nxf3 {[%emt 0:01:15]} 25. Bxf3 {[%emt 0:00:16]} Nd4 {[%emt 0:05:09]} 26. Kg2 {[%emt 0:00:18]} Rbf8 {[%emt 0:03:04]} 27. Be2 {[%emt 0:02:08]} Qg5 {[%emt 0:00:58]} 28. Qc1 {[%emt 0:05:06]} Rf4 {[%emt 0:05:57]} 29. Qe3 {[%emt 0:15:25]} e5 {[%emt 0:03:05]} 30. Rbd1 {[%emt 0:05:21]} Nxe2 {[%emt 0:00:52]} 31. Nxe2 {[%emt 0:01:16]} Rxg4+ {[%emt 0:00:15]} 32. Ng3 {[%emt 0:00:18]} Qxe3 {[%emt 0:00:08]} 0-1

[Event "FIDE WCCC G10 2018"]
[Site "Santiago de Compostela"]
[Date "2018.11.05"]
[Round "2"]
[White "Vojinovic, Anastasija"]
[Black "Anupam M Sreekumar"]
[Result "0-1"]
[ECO "C54"]
[WhiteElo "1285"]
[BlackElo "1615"]
[Annotator "NA RC"]
[PlyCount "72"]
[EventDate "2018.11.04"]
[EventType "swiss"]
[EventCountry "ESP"]
[SourceTitle "playchess.com"]
[Source "ChessBase"]
[SourceQuality "1"]
[TimeControl "40/5400+30:1800+30"]

1. e4 {[%emt 0:00:00]} e5 {[%emt 0:00:00]} 2. Nf3 {[%emt 0:00:00]} Nc6 {[%emt 0:00:02]} 3. Bc4 {[%emt 0:00:13]} Bc5 {[%emt 0:00:10]} 4. c3 {[%emt 0:00:58]} Nf6 {[%emt 0:00:10]} 5. d3 {[%emt 0:00:08]} d6 {[%emt 0:00:37]} 6. Nbd2 {[%emt 0:01:22]} a5 {[%emt 0:00:52]} 7. O-O {[%emt 0:03:08]} Bg4 {[%emt 0:01:12]} 8. h3 {[%emt 0:02:27]} Bh5 {[%emt 0:02:05]} 9. Re1 {[%emt 0:01:16]} O-O {[%emt 0:02:04]} 10. Nf1 {[%emt 0:03:12]} Bg6 {[%emt 0:03:38]} 11. Ng3 {[%emt 0:04:47]} Ba7 {[%emt 0:07:00]} 12. Nh4 {[%emt 0:13:12]} Nxe4 {[%emt 0:04:43]} 13. dxe4 {[%emt 0:05:07]} Qxh4 {[%emt 0:02:11]} 14. Qf3 {[%emt 0:00:48]} Kh8 {[%emt 0:03:23]} 15. Nf5 {[%emt 0:02:35]} Qf6 {[%emt 0:04:27]} 16. Qg4 {[%emt 0:04:59]} h6 {[%emt 0:03:22]} 17. Be3 {[%emt 0:04:41]} Bxf5 {[%emt 0:04:25]} 18. exf5 {[%emt 0:00:34]} Ne7 {[%emt 0:00:43]} 19. Bxa7 {[%emt 0:02:15]} Rxa7 {[%emt 0:00:17]} 20. Bd3 {[%emt 0:01:56]} d5 {[%emt 0:02:12]} 21. f3 {[%emt 0:01:54]} c5 {[%emt 0:04:37]} 22. Rad1 {[%emt 0:06:41]} c4 {[%emt 0:04:09]} 23. Bc2 {[%emt 0:00:24]} Rd8 {[%emt 0:01:21]} 24. Rd2 {[%emt 0:06:04]} b5 {[%emt 0:03:16]} 25. b3 {[%emt 0:03:57]} Rad7 {[%emt 0:02:08]} 26. Red1 {[%emt 0:01:22]} d4 {[%emt 0:06:08]} 27. Be4 {[%emt 0:07:11]} Nd5 {[%emt 0:02:40]} 28. Bxd5 {[%emt 0:03:20]} dxc3 {[%emt 0:05:44]} 29. Rc2 {[%emt 0:01:12]} Rxd5 {[%emt 0:00:10]} 30. Rxd5 {[%emt 0:00:15]} Rxd5 {[%emt 0:00:07]} 31. Rxc3 {[%emt 0:03:03]} e4 {[%emt 0:02:54]} 32. Re3 {[%emt 0:03:09]} exf3 {[%emt 0:05:59]} 33. Rxf3 {[%emt 0:00:38]} Rd1+ {[%emt 0:00:29]} 34. Kh2 {[%emt 0:00:57]} Qd6+ {[%emt 0:02:13]} 35. Rg3 {[%emt 0:00:27]} Qd4 {[%emt 0:02:01]} 36. bxc4 {[%emt 0:01:38]} Qg1# {[%emt 0:00:29]} 0-1